[Event "Polish Youth Ekstraliga 2022"]
[Site "Lublin"]
[Date "2022.06.30"]
[Round "6.19"]
[White "Poltorak, Sebastian"]
[Black "Karolczuk, Iwo"]
[Result "1-0"]
[ECO "E32"]
[WhiteElo "2322"]
[BlackElo "2319"]
[Annotator "RC"]
[PlyCount "93"]
[EventDate "2022.06.24"]
[EventType "team-tourn"]
[EventCountry "POL"]
[SourceTitle "playchess.com"]
[Source "ChessBase"]
[SourceQuality "1"]
[TimeControl "40/5400+30:1800+30"]

1. d4 {[%emt 0:00:06]} Nf6 {[%emt 0:00:08]} 2. c4 {[%emt 0:00:03]} e6 {[%emt 0:01:35]} 3. Nc3 {[%emt 0:00:11]} Bb4 {[%emt 0:00:05]} 4. Qc2 {[%emt 0:00:03]} O-O {[%emt 0:00:06]} 5. e4 {[%emt 0:00:03]} d5 {[%emt 0:04:11]} 6. e5 {[%emt 0:00:11]} Ne4 {[%emt 0:00:04]} 7. Bd3 {[%emt 0:00:04]} c5 {[%emt 0:00:13]} 8. Nge2 {[%emt 0:00:04]} cxd4 {[%emt 0:06:47]} 9. Nxd4 {[%emt 0:00:05]} Nd7 {[%emt 0:01:04]} 10. Bf4 {[%emt 0:00:04]} Ndc5 {[%emt 0:02:55]} 11. O-O {[%emt 0:00:33]} Bxc3 {[%emt 0:00:08]} 12. bxc3 {[%emt 0:00:04]} Nxd3 {[%emt 0:00:04]} 13. Qxd3 {[%emt 0:00:06]} b6 {[%emt 0:01:22]} 14. cxd5 {[%emt 0:00:11]} Qxd5 {[%emt 0:00:07]} 15. Rfd1 {[%emt 0:08:18]} Bb7 {[%emt 0:01:57]} 16. c4 {[%emt 0:02:47]} Qa5 {[%emt 0:04:23]} 17. Nb5 {[%emt 0:17:58]} Bc6 {[%emt 0:15:35]} 18. a4 {[%emt 0:11:47]} Qb4 {[%emt 0:02:25]} 19. f3 {[%emt 0:05:21]} Bxb5 {[%emt 0:05:18]} 20. axb5 {[%emt 0:00:35]} Nc5 {[%emt 0:01:05]} 21. Qc2 {[%emt 0:05:28]} Nb3 {[%emt 0:04:23]} 22. Rab1 {[%emt 0:06:11]} Qc5+ {[%emt 0:00:14]} 23. Kf1 {[%emt 0:03:03]} Na5 {[%emt 0:02:22]} 24. Rbc1 {[%emt 0:00:12]} Rad8 {[%emt 0:07:28]} 25. Bd2 {[%emt 0:03:53]} Qxe5 {[%emt 0:02:17]} 26. Bxa5 {[%emt 0:00:24]} bxa5 {[%emt 0:00:08]} 27. c5 {[%emt 0:09:11]} Qxh2 {[%emt 0:10:33]} 28. c6 {[%emt 0:02:23]} Qh1+ {[%emt 0:07:21]} 29. Kf2 {[%emt 0:00:04]} Qh4+ {[%emt 0:00:14]} 30. Kg1 {[%emt 0:02:06]} Qb4 {[%emt 0:07:44]} 31. Rxd8 {[%emt 0:05:57]} Rxd8 {[%emt 0:00:09]} 32. c7 {[%emt 0:00:04]} Rc8 {[%emt 0:01:05]} 33. Rd1 {[%emt 0:01:15]} Qe7 {[%emt 0:02:46]} 34. Qc6 {[%emt 0:00:17]} h5 {[%emt 0:02:13]} 35. Rd7 {[%emt 0:00:03]} Qh4 {[%emt 0:01:12]} 36. Qc3 {[%emt 0:01:25]} a4 {[%emt 0:02:54]} 37. f4 {[%emt 0:02:32]} Kh7 {[%emt 0:03:21]} 38. Rxf7 {[%emt 0:00:17]} Qg4 {[%emt 0:00:32]} 39. Qd3+ {[%emt 0:09:32]} Qg6 {[%emt 0:01:33]} 40. Qd7 {[%emt 0:00:00]} a3 {[%emt 0:00:00]} 41. Qxc8 {[%emt 0:15:26]} Qxf7 {[%emt 0:14:44]} 42. Qb8 {[%emt 0:00:41]} a2 {[%emt 0:08:52]} 43. Qxa7 {[%emt 0:00:06]} Qxf4 {[%emt 0:04:18]} 44. c8=Q {[%emt 0:03:26]} Qd2 {[%emt 0:00:34]} 45. Qc4 {[%emt 0:00:19]} Qe1+ {[%emt 0:02:55]} 46. Qf1 {[%emt 0:00:06]} Qb1 {[%emt 0:00:05]} 47. b6 {[%emt 0:00:09]} 1-0

[Event "Polish Youth Ekstraliga 2022"]
[Site "Lublin"]
[Date "2022.06.30"]
[Round "6.20"]
[White "Backiel, Hubert"]
[Black "Meers, Hubert"]
[Result "0-1"]
[ECO "B42"]
[WhiteElo "2045"]
[BlackElo "2013"]
[Annotator "RC"]
[PlyCount "120"]
[EventDate "2022.06.24"]
[EventType "team-tourn"]
[EventCountry "POL"]
[SourceTitle "playchess.com"]
[Source "ChessBase"]
[SourceQuality "1"]
[TimeControl "40/5400+30:1800+30"]

1. e4 {[%emt 0:00:02]} c5 {[%emt 0:00:06]} 2. Nf3 {[%emt 0:00:04]} e6 {[%emt 0:00:05]} 3. d4 {[%emt 0:00:06]} cxd4 {[%emt 0:00:03]} 4. Nxd4 {[%emt 0:00:05]} a6 {[%emt 0:00:03]} 5. Bd3 {[%emt 0:00:50]} Bc5 {[%emt 0:00:05]} 6. Nb3 {[%emt 0:01:04]} Ba7 {[%emt 0:00:02]} 7. O-O {[%emt 0:08:32]} Ne7 {[%emt 0:00:02]} 8. Qe2 {[%emt 0:05:04]} O-O {[%emt 0:00:26]} 9. Be3 {[%emt 0:02:20]} Nbc6 {[%emt 0:00:50]} 10. Bxa7 {[%emt 0:11:22]} Rxa7 {[%emt 0:00:04]} 11. c4 {[%emt 0:02:07]} d5 {[%emt 0:00:32]} 12. cxd5 {[%emt 0:04:45]} exd5 {[%emt 0:00:01]} 13. N1d2 {[%emt 0:10:02]} Ne5 {[%emt 0:13:07]} 14. Rad1 {[%emt 0:05:20]} b6 {[%emt 0:15:12]} 15. Bb1 {[%emt 0:03:42]} Re8 {[%emt 0:06:08]} 16. h3 {[%emt 0:14:49]} N5g6 {[%emt 0:07:02]} 17. f4 {[%emt 0:07:13]} Bd7 {[%emt 0:03:44]} 18. Qf2 {[%emt 0:01:13]} Bb5 {[%emt 0:04:08]} 19. Rfe1 {[%emt 0:00:22]} dxe4 {[%emt 0:00:35]} 20. f5 {[%emt 0:03:42]} e3 {[%emt 0:13:09]} 21. Rxe3 {[%emt 0:00:52]} Nf8 {[%emt 0:00:16]} 22. f6 {[%emt 0:01:09]} gxf6 {[%emt 0:02:18]} 23. Rde1 {[%emt 0:01:55]} f5 {[%emt 0:06:59]} 24. Nd4 {[%emt 0:03:37]} Qxd4 {[%emt 0:04:47]} 25. Rg3+ {[%emt 0:00:15]} Neg6 {[%emt 0:00:02]} 26. Qxd4 {[%emt 0:00:45]} Rxe1+ {[%emt 0:00:02]} 27. Kh2 {[%emt 0:08:33]} Rd7 {[%emt 0:00:05]} 28. Qc3 {[%emt 0:00:07]} Rxd2 {[%emt 0:00:06]} 29. Qxd2 {[%emt 0:00:33]} Rxb1 {[%emt 0:00:03]} 30. h4 {[%emt 0:00:23]} h5 {[%emt 0:03:01]} 31. Rg5 {[%emt 0:00:12]} Ne6 {[%emt 0:04:12]} 32. Rxh5 {[%emt 0:00:28]} Rf1 {[%emt 0:01:54]} 33. b3 {[%emt 0:01:20]} Rf4 {[%emt 0:00:46]} 34. Qc2 {[%emt 0:01:38]} Nd4 {[%emt 0:05:34]} 35. Qd2 {[%emt 0:01:02]} Rg4 {[%emt 0:04:20]} 36. Qf2 {[%emt 0:01:28]} Kf8 {[%emt 0:01:21]} 37. Qd2 {[%emt 0:01:21]} Bc6 {[%emt 0:01:17]} 38. Qh6+ Ke8 {[%emt 0:00:01]} 39. Qe3+ {[%emt 0:00:25]} Kd7 {[%emt 0:02:51]} 40. Rg5 {[%emt 0:00:00]} Rxh4+ {[%emt 0:00:00]} 41. Kg1 {[%emt 0:00:18]} Re4 {[%emt 0:01:13]} 42. Qd2 {[%emt 0:01:21]} Ke6 {[%emt 0:03:43]} 43. Qf2 {[%emt 0:11:07]} Kf6 {[%emt 0:05:01]} 44. Rh5 {[%emt 0:06:56]} Rg4 {[%emt 0:01:52]} 45. g3 {[%emt 0:01:41]} Rxg3+ {[%emt 0:01:39]} 46. Qxg3 {[%emt 0:04:18]} Ne2+ {[%emt 0:00:04]} 47. Kf2 {[%emt 0:00:03]} Nxg3 {[%emt 0:00:04]} 48. Kxg3 {[%emt 0:00:02]} Ke5 {[%emt 0:00:08]} 49. Kf2 {[%emt 0:01:18]} Ke4 {[%emt 0:00:28]} 50. Rh1 {[%emt 0:00:51]} f4 {[%emt 0:00:04]} 51. Re1+ {[%emt 0:06:04]} Kf5 {[%emt 0:00:06]} 52. Rc1 {[%emt 0:00:56]} Ne5 {[%emt 0:00:05]} 53. Rc3 {[%emt 0:00:18]} Bd5 {[%emt 0:04:35]} 54. Rc7 {[%emt 0:00:50]} Ng4+ {[%emt 0:00:37]} 55. Kf1 {[%emt 0:00:12]} f3 {[%emt 0:00:07]} 56. Rc3 {[%emt 0:02:27]} Kf4 {[%emt 0:00:05]} 57. a4 {[%emt 0:00:38]} a5 {[%emt 0:00:04]} 58. Rd3 {[%emt 0:00:08]} Bb7 {[%emt 0:00:11]} 59. Rd4+ {[%emt 0:01:12]} Kg3 {[%emt 0:00:31]} 60. b4 {[%emt 0:00:24]} Nh2+ {[%emt 0:00:16]} 0-1

[Event "Polish Youth Ekstraliga 2022"]
[Site "Lublin"]
[Date "2022.06.30"]
[Round "6.21"]
[White "Zielonka, Adam"]
[Black "Ptaszynski, Szymon"]
[Result "1/2-1/2"]
[ECO "C43"]
[WhiteElo "1988"]
[BlackElo "1781"]
[Annotator "RC"]
[PlyCount "97"]
[EventDate "2022.06.24"]
[EventType "team-tourn"]
[EventCountry "POL"]
[SourceTitle "playchess.com"]
[Source "ChessBase"]
[SourceQuality "1"]
[TimeControl "40/5400+30:1800+30"]

1. e4 {[%emt 0:00:30]} e5 {[%emt 0:00:30]} 2. Nf3 {[%emt 0:00:02]} Nf6 {[%emt 0:00:07]} 3. d4 {[%emt 0:00:03]} Nxe4 {[%emt 0:25:56]} 4. Bd3 {[%emt 0:00:05]} d5 {[%emt 0:01:57]} 5. Nxe5 {[%emt 0:00:05]} Bd6 {[%emt 0:06:48]} 6. c4 {[%emt 0:01:49]} Bxe5 {[%emt 0:13:37]} 7. dxe5 {[%emt 0:00:37]} c6 {[%emt 0:00:06]} 8. Bxe4 {[%emt 0:00:37]} dxe4 {[%emt 0:00:08]} 9. Qxd8+ {[%emt 0:00:05]} Kxd8 {[%emt 0:00:04]} 10. Nc3 {[%emt 0:00:31]} Nd7 {[%emt 0:01:44]} 11. O-O {[%emt 0:12:06]} Nxe5 {[%emt 0:07:08]} 12. Nxe4 {[%emt 0:01:06]} f6 {[%emt 0:05:33]} 13. Bf4 {[%emt 0:06:43]} Kc7 {[%emt 0:05:31]} 14. Rad1 {[%emt 0:04:47]} Be6 {[%emt 0:02:19]} 15. b3 {[%emt 0:00:08]} Rad8 {[%emt 0:00:08]} 16. f3 {[%emt 0:00:32]} Rxd1 {[%emt 0:01:25]} 17. Rxd1 {[%emt 0:00:07]} Re8 {[%emt 0:01:09]} 18. Bxe5+ {[%emt 0:00:13]} fxe5 {[%emt 0:00:14]} 19. Kf2 {[%emt 0:00:08]} h6 {[%emt 0:03:23]} 20. Ng3 {[%emt 0:17:04]} Bf7 {[%emt 0:04:08]} 21. Ke3 {[%emt 0:06:38]} Bg6 {[%emt 0:01:39]} 22. Ne4 {[%emt 0:01:10]} b6 {[%emt 0:03:41]} 23. Nf2 {[%emt 0:04:02]} Bf5 {[%emt 0:00:22]} 24. Rd2 {[%emt 0:04:09]} Re7 {[%emt 0:00:14]} 25. Ne4 {[%emt 0:00:50]} Bg6 {[%emt 0:00:21]} 26. Re2 {[%emt 0:01:03]} Re6 {[%emt 0:02:42]} 27. Kd2 {[%emt 0:01:39]} Kd7 {[%emt 0:01:01]} 28. Kc3 {[%emt 0:00:54]} Kc7 {[%emt 0:01:35]} 29. Nf2 {[%emt 0:00:29]} Kd6 {[%emt 0:00:28]} 30. b4 {[%emt 0:03:39]} Bf5 {[%emt 0:01:13]} 31. Ne4+ {[%emt 0:01:15]} Bxe4 {[%emt 0:04:23]} 32. Rxe4 {[%emt 0:00:13]} Rf6 {[%emt 0:00:54]} 33. Rg4 {[%emt 0:08:11]} g6 {[%emt 0:00:18]} 34. Kd3 {[%emt 0:00:29]} Ke6 {[%emt 0:00:31]} 35. Ke3 {[%emt 0:01:02]} a6 {[%emt 0:02:24]} 36. Re4 {[%emt 0:01:33]} Kd6 {[%emt 0:00:45]} 37. a4 {[%emt 0:00:14]} c5 {[%emt 0:01:21]} 38. b5 {[%emt 0:00:11]} axb5 {[%emt 0:00:13]} 39. axb5 {[%emt 0:00:06]} Rf7 {[%emt 0:01:04]} 40. f4 {[%emt 0:00:19]} exf4+ {[%emt 0:00:43]} 41. Rxf4 {[%emt 0:00:04]} Re7+ {[%emt 0:00:29]} 42. Kd3 {[%emt 0:00:32]} Re6 {[%emt 0:00:12]} 43. h3 {[%emt 0:02:23]} Ke7 {[%emt 0:02:08]} 44. Re4 {[%emt 0:00:39]} h5 {[%emt 0:00:19]} 45. g3 {[%emt 0:04:44]} Rxe4 {[%emt 0:02:24]} 46. Kxe4 {[%emt 0:00:02]} Ke6 {[%emt 0:00:01]} 47. h4 {[%emt 0:01:45]} Kd6 {[%emt 0:01:19]} 48. Kf4 {[%emt 0:00:43]} Ke6 {[%emt 0:00:02]} 49. Ke4 1/2-1/2

[Event "Polish Youth Ekstraliga 2022"]
[Site "Lublin"]
[Date "2022.06.30"]
[Round "6.22"]
[White "Rekuc, Patryk"]
[Black "Liskiewicz, Jakub"]
[Result "1-0"]
[ECO "E10"]
[WhiteElo "1842"]
[BlackElo "1839"]
[Annotator "NA RC"]
[PlyCount "61"]
[EventDate "2022.06.24"]
[EventType "team-tourn"]
[EventCountry "POL"]
[SourceTitle "playchess.com"]
[Source "ChessBase"]
[SourceQuality "1"]
[TimeControl "40/5400+30:1800+30"]

1. d4 {[%emt 0:00:02]} Nf6 {[%emt 0:00:10]} 2. c4 {[%emt 0:00:04]} e6 {[%emt 0:00:05]} 3. Nf3 {[%emt 0:00:04]} d5 {[%emt 0:00:07]} 4. e3 {[%emt 0:00:05]} c6 {[%emt 0:00:16]} 5. Bd3 {[%emt 0:00:05]} Nbd7 {[%emt 0:00:17]} 6. O-O {[%emt 0:00:26]} Be7 {[%emt 0:00:48]} 7. b3 {[%emt 0:00:16]} O-O {[%emt 0:00:33]} 8. Bb2 {[%emt 0:00:21]} dxc4 {[%emt 0:02:25]} 9. bxc4 {[%emt 0:01:11]} c5 {[%emt 0:01:06]} 10. Nbd2 {[%emt 0:00:45]} b6 {[%emt 0:03:43]} 11. Qc2 {[%emt 0:02:10]} Bb7 {[%emt 0:00:49]} 12. e4 {[%emt 0:16:06]} cxd4 {[%emt 0:01:54]} 13. e5 {[%emt 0:00:09]} Ng4 {[%emt 0:02:33]} 14. Bxh7+ {[%emt 0:03:52]} Kh8 {[%emt 0:00:08]} 15. Bxd4 {[%emt 0:00:37]} Bg5 $2 {[%emt 0:32:38]} (15... Qc7 $16) 16. Be4 {[%emt 0:01:00]} Bxe4 {[%emt 0:13:48]} 17. Nxe4 {[%emt 0:01:57]} ({But not} 17. Qxe4 $6 Nh6 18. Rad1 Rc8 19. Nxg5 Qxg5 $16) 17... Bf4 {[%emt 0:00:37]} 18. Rfd1 {[%emt 0:02:35]} Qc7 $2 {[%emt 0:01:01]} (18... Qe7 {is a better chance.} 19. Qe2 Kg8) 19. Neg5 {[%emt 0:00:56]} Bxg5 {[%emt 0:06:10]} 20. Nxg5 {[%emt 0:00:07]} g6 {[%emt 0:00:16]} 21. Qe4 {[%emt 0:02:10]} Nh6 {[%emt 0:02:04]} 22. Qh4 {[%emt 0:01:29]} Kg7 {[%emt 0:00:19]} 23. Be3 {[%emt 0:00:14]} Qc6 {[%emt 0:11:43]} (23... Nxe5 $142 24. Qxh6+ Kxh6 25. Nxe6+ Kh7 26. Nxc7 Rac8) 24. Rd6 {[%emt 0:01:00]} Qb7 {[%emt 0:03:07]} 25. Nxe6+ {[%emt 0:00:26]} fxe6 {[%emt 0:00:07]} 26. Qxh6+ {[%emt 0:02:22]} Kf7 {[%emt 0:00:06]} 27. Qh7+ {[%emt 0:00:23]} (27. Rad1 $142 Nxe5 28. Qh7+ Kf6 29. Qxb7 Rac8 30. Bd4 Rc5 31. Re1 a6 32. f4) 27... Ke8 {[%emt 0:00:06]} 28. Rxe6+ {[%emt 0:01:52]} Kd8 {[%emt 0:00:06]} 29. Qe7+ {[%emt 0:00:17]} Kc8 {[%emt 0:00:17]} 30. Rd1 {[%emt 0:00:13]} a5 {[%emt 0:11:16]} 31. Red6 {[%emt 0:01:19]} 1-0

[Event "Polish Youth Ekstraliga 2022"]
[Site "Lublin"]
[Date "2022.06.30"]
[Round "6.23"]
[White "Zabrzanska, Weronika"]
[Black "Marcinczyk, Monika"]
[Result "1/2-1/2"]
[ECO "B22"]
[WhiteElo "1882"]
[BlackElo "1991"]
[Annotator "RC"]
[PlyCount "46"]
[EventDate "2022.06.24"]
[EventType "team-tourn"]
[EventCountry "POL"]
[SourceTitle "playchess.com"]
[Source "ChessBase"]
[SourceQuality "1"]
[TimeControl "40/5400+30:1800+30"]

1. e4 {[%emt 0:00:03]} c5 {[%emt 0:00:04]} 2. c3 {[%emt 0:00:07]} Nf6 {[%emt 0:00:05]} 3. e5 {[%emt 0:00:04]} Nd5 {[%emt 0:00:06]} 4. Nf3 {[%emt 0:00:08]} d6 {[%emt 0:00:12]} 5. d4 {[%emt 0:00:49]} cxd4 {[%emt 0:00:09]} 6. cxd4 {[%emt 0:00:12]} Nc6 {[%emt 0:01:00]} 7. Bc4 {[%emt 0:00:23]} Nb6 {[%emt 0:00:14]} 8. Bb5 {[%emt 0:01:26]} dxe5 {[%emt 0:00:25]} 9. Nxe5 {[%emt 0:00:24]} Bd7 {[%emt 0:00:25]} 10. Nc3 {[%emt 0:00:31]} Nxe5 {[%emt 0:00:28]} 11. dxe5 {[%emt 0:00:07]} Bxb5 {[%emt 0:00:20]} 12. Nxb5 {[%emt 0:00:35]} Qxd1+ {[%emt 0:00:11]} 13. Kxd1 {[%emt 0:00:04]} O-O-O+ {[%emt 0:00:10]} 14. Ke2 {[%emt 0:01:01]} Rd5 {[%emt 0:00:12]} 15. a4 {[%emt 0:04:22]} Rxe5+ {[%emt 0:00:08]} 16. Be3 {[%emt 0:00:10]} Nd5 {[%emt 0:00:53]} 17. Rac1+ {[%emt 0:02:38]} Kb8 {[%emt 0:00:07]} 18. Rhd1 {[%emt 0:01:43]} e6 {[%emt 0:00:11]} 19. Kf3 {[%emt 0:00:25]} Rf5+ {[%emt 0:00:10]} 20. Ke2 {[%emt 0:00:09]} Re5 {[%emt 0:00:05]} 21. Kf3 {[%emt 0:00:07]} Rf5+ {[%emt 0:00:06]} 22. Ke2 {[%emt 0:00:10]} Re5 {[%emt 0:00:09]} 23. Kf3 {[%emt 0:00:35]} Rf5+ {[%emt 0:00:44]} 1/2-1/2

[Event "Polish Youth Ekstraliga 2022"]
[Site "Lublin"]
[Date "2022.06.30"]
[Round "6.24"]
[White "Szczotka, Klara"]
[Black "Polakiewicz, Blanka"]
[Result "1-0"]
[ECO "B40"]
[WhiteElo "1863"]
[BlackElo "1151"]
[Annotator "NA RC"]
[PlyCount "105"]
[EventDate "2022.06.24"]
[EventType "team-tourn"]
[EventCountry "POL"]
[SourceTitle "playchess.com"]
[Source "ChessBase"]
[SourceQuality "1"]
[TimeControl "40/5400+30:1800+30"]

1. e4 c5 2. Nf3 e6 3. b3 {[%emt 0:00:45]} d6 {[%emt 0:01:57]} 4. Bb5+ {[%emt 0:00:34]} Nd7 5. O-O a6 6. Bd3 Ngf6 7. Bb2 Be7 8. Re1 O-O {[%emt 0:12:19]} 9. e5 {[%emt 0:10:32]} dxe5 {[%emt 0:00:45]} 10. Nxe5 {[%emt 0:00:05]} Nxe5 {[%emt 0:00:27]} 11. Bxe5 {[%emt 0:02:38]} Bd7 {[%emt 0:07:16]} 12. Nc3 {[%emt 0:02:05]} Bc6 {[%emt 0:01:57]} 13. Re3 {[%emt 0:02:53]} Bd6 {[%emt 0:02:22]} 14. f4 {[%emt 0:02:27]} h6 {[%emt 0:06:36]} 15. Qe2 {[%emt 0:02:07]} Bxe5 {[%emt 0:02:55]} 16. fxe5 {[%emt 0:00:53]} Nd5 {[%emt 0:01:09]} 17. Nxd5 {[%emt 0:00:48]} Bxd5 {[%emt 0:00:36]} 18. Rf1 {[%emt 0:00:32]} b5 $2 {[%emt 0:07:11] [#]} (18... f5 $14) 19. Rg3 $2 {[%emt 0:02:09]} ({White must play} 19. Rf6 $1 $18 {[%mdl 512]}) 19... Qh4 $2 {[%emt 0:06:49]} (19... f5 $16) 20. Qe3 $2 {[%emt 0:03:39]} (20. Rg4 $18 {is the precise move to win.} Qxg4 21. Qxg4) 20... Qd4 {[%emt 0:04:14]} 21. Qxd4 {[%emt 0:00:20]} cxd4 {[%emt 0:00:10]} 22. Rf4 {[%emt 0:00:17]} Rfd8 {[%emt 0:02:45]} 23. Rxd4 {[%emt 0:00:52]} Bc6 {[%emt 0:01:45]} 24. Rdg4 {[%emt 0:00:29]} (24. Rgg4 $142) 24... g6 {[%emt 0:04:08]} 25. Kf2 {[%emt 0:09:58]} Bd5 {[%emt 0:04:22]} 26. Rd4 {[%emt 0:02:58]} Bc6 {[%emt 0:03:51]} 27. Ke3 {[%emt 0:05:28]} Rab8 {[%emt 0:02:30]} 28. Rgg4 {[%emt 0:02:32]} Rbc8 {[%emt 0:02:38]} 29. g3 {[%emt 0:00:27]} Bb7 {[%emt 0:04:50]} 30. Rxd8+ {[%emt 0:00:17]} Rxd8 {[%emt 0:00:10]} 31. Rd4 {[%emt 0:00:03]} Rb8 {[%emt 0:05:10]} 32. Rd7 {[%emt 0:00:31]} Kf8 {[%emt 0:01:04]} 33. Be4 {[%emt 0:00:42]} Bxe4 {[%emt 0:00:48]} 34. Kxe4 {[%emt 0:00:02]} Rc8 {[%emt 0:00:55]} 35. c3 {[%emt 0:00:20]} Rc6 {[%emt 0:00:40]} 36. Rd6 {[%emt 0:01:45]} Rxd6 {[%emt 0:00:44]} 37. exd6 {[%emt 0:00:01]} f6 {[%emt 0:01:00]} 38. c4 {[%emt 0:00:18]} bxc4 {[%emt 0:00:34]} 39. bxc4 {[%emt 0:00:02]} Ke8 {[%emt 0:00:21]} 40. c5 {[%emt 0:00:00]} Kd7 {[%emt 0:00:00]} 41. g4 {[%emt 0:04:00]} Kc6 {[%emt 0:02:09]} 42. h4 {[%emt 0:01:01]} a5 {[%emt 0:01:19]} 43. a4 {[%emt 0:00:06]} Kd7 {[%emt 0:00:19]} 44. d3 {[%emt 0:00:51]} Kc6 {[%emt 0:00:38]} 45. d4 {[%emt 0:00:07]} Kd7 {[%emt 0:00:40]} 46. h5 {[%emt 0:01:24]} g5 {[%emt 0:01:08]} 47. d5 {[%emt 0:01:06]} e5 {[%emt 0:00:37]} 48. Kf5 {[%emt 0:00:09]} Kd8 {[%emt 0:00:17]} 49. c6 {[%emt 0:00:03]} Kc8 {[%emt 0:00:28]} 50. d7+ {[%emt 0:00:16]} Kd8 {[%emt 0:00:12]} 51. d6 {[%emt 0:00:29]} e4 {[%emt 0:00:15]} 52. Ke6 {[%emt 0:00:01]} e3 {[%emt 0:00:09]} 53. c7# {[%emt 0:00:03]} 1-0

[Event "Polish Youth Ekstraliga 2022"]
[Site "Lublin"]
[Date "2022.06.30"]
[Round "6.25"]
[White "Baum, Jonasz"]
[Black "Dzida, Kamil"]
[Result "1-0"]
[ECO "D38"]
[WhiteElo "2409"]
[BlackElo "2294"]
[Annotator "TA"]
[PlyCount "61"]
[EventDate "2022.06.24"]
[EventType "team-tourn"]
[EventCountry "POL"]
[SourceTitle "playchess.com"]
[Source "ChessBase"]
[SourceQuality "1"]
[TimeControl "40/5400+30:1800+30"]

{[%evp 18,61,14,0,12,6,54,56,65,69,69,81,83,73,121,53,186,177,160,157,206,198,177,162,343,340,447,427,487,295,558,540,700,698,692,673,648,519,533,545,682,677,642,637,642,603]} 1. d4 {[%emt 0:00:02]} Nf6 {[%emt 0:00:06]} 2. c4 {[%emt 0:00:04]} e6 {[%emt 0:00:05]} 3. Nf3 {[%emt 0:00:05]} d5 {[%emt 0:00:04]} 4. Nc3 {[%emt 0:00:18]} Bb4 {[%emt 0:00:06]} 5. cxd5 {[%emt 0:00:54]} exd5 {[%emt 0:00:17]} 6. Bg5 {[%emt 0:00:07]} h6 {[%emt 0:00:15]} 7. Bxf6 {[%emt 0:00:36]} Qxf6 {[%emt 0:00:08]} 8. Qa4+ {[%emt 0:00:10]} Nc6 {[%emt 0:00:09]} 9. e3 {[%emt 0:00:08]} O-O {[%emt 0:01:15]} 10. Rc1 {[%emt 0:00:10]} Be6 {[%emt 0:04:32] D38: Queen's Gambit Declined: Ragozin Defence (4 Nf3 Bb4).} 11. a3 {[%emt 0:01:42] [#]} Be7 $146 {[%emt 0:02:29]} (11... Bd6 $11 {should be considered.}) ({Predecessor:} 11... Bd6 12. Nb5 a6 13. Nxd6 cxd6 14. Be2 Rfc8 15. O-O b5 16. Qb3 Qd8 17. Qa2 Na5 18. b3 Rxc1 19. Rxc1 {½-½ (51) Akobian,V (2647)-Bu,X (2730) Riadh 2017}) 12. Qb5 $14 {[%emt 0:07:07][%csl LRb7,LRd5]} a6 {[%emt 0:03:20] White is slightly better.} 13. Qxb7 {[%emt 0:02:11]} Na5 {[%emt 0:00:07]} 14. Qxc7 {[%emt 0:00:13] White is more active.} Nb3 {[%emt 0:00:17]} 15. Rd1 {[%emt 0:01:20]} Rfc8 {[%emt 0:01:49]} 16. Qb6 {[%emt 0:21:08]} (16. Qe5 $1 $16) 16... Rcb8 {[%emt 0:04:07] [#]} ({Black should play} 16... Rab8 $1 $14 17. Qxa6 Qg6) 17. Qc6 $1 $18 {[%emt 0:00:43]} Na5 {[%emt 0:02:11] [#]} 18. Qa4 {[%emt 0:02:51]} Nc4 {[%emt 0:00:37]} (18... Nb3 $16 19. Bd3 (19. Bxa6 Qg6 $17) 19... Bd6) 19. Bxc4 {[%emt 0:01:10]} dxc4 {[%emt 0:00:09]} 20. Rd2 {[%emt 0:07:21]} g5 $2 {[%emt 0:06:03]} (20... Ra7 {is a better defense.} 21. O-O Rab7 22. Qxa6 Rxb2) 21. O-O {[%emt 0:03:39]} g4 {[%emt 0:02:08]} 22. Ne5 {[%emt 0:00:56]} Rc8 {[%emt 0:00:11]} 23. Nd7 {[%emt 0:05:33]} Qg6 {[%emt 0:03:28]} (23... Bxd7 24. Qxd7 Qe6) 24. Nb6 {[%emt 0:02:12][%csl LRa8,LRc8] White is clearly winning.} h5 {[%emt 0:00:08]} 25. Nxa8 {[%emt 0:00:47]} Rxa8 {[%emt 0:00:05]} 26. d5 {[%emt 0:00:28]} Bf5 {[%emt 0:00:38]} 27. Qc6 {[%emt 0:06:53]} Qxc6 {[%emt 0:00:08]} 28. dxc6 {[%emt 0:00:01]} Bd3 {[%emt 0:00:08]} 29. Rc1 {[%emt 0:00:42]} Rc8 {[%emt 0:00:51]} 30. Nd5 {[%emt 0:00:14]} Bd6 {[%emt 0:00:08]} 31. Nb4 {[%emt 0:00:45] White took control after the opening.  Weighted Error Value: White=0.23 (precise) /Black=0.64} 1-0